[Event "81st Tata Steel Challengers 2019"]
[Site "Wijk aan Zee"]
[Date "2019.01.18"]
[Round "6"]
[White "Paehtz, Elisabeth"]
[Black "Praggnanandhaa R"]
[Result "1/2-1/2"]
[ECO "E01"]
[WhiteElo "2477"]
[BlackElo "2539"]
[Annotator "ChessBase"]
[PlyCount "69"]
[EventDate "2019.01.12"]
[EventType "tourn"]
[EventCountry "NED"]
[SourceTitle "playchess.com"]
[Source "ChessBase"]
[SourceQuality "1"]
[TimeControl "40/6000+30:20/3000+30:900+30"]

1. d4 {[%emt 0:00:00]} Nf6 {[%emt 0:00:00]} 2. c4 {[%emt 0:00:00]} e6 {[%emt 0:00:00]} 3. g3 {[%emt 0:00:00]} d5 {[%emt 0:00:00]} 4. Bg2 {[%emt 0:00:00]} Bb4+ {[%emt 0:00:06]} 5. Bd2 {[%emt 0:00:00]} a5 {[%emt 0:00:05]} 6. Nf3 {[%emt 0:00:07]} dxc4 {[%emt 0:00:06]} 7. a3 {[%emt 0:00:25]} Bxd2+ {[%emt 0:01:38]} 8. Nbxd2 {[%emt 0:00:15]} b5 {[%emt 0:00:39]} 9. b3 {[%emt 0:00:09]} cxb3 {[%emt 0:00:37]} 10. Qxb3 {[%emt 0:00:05]} c6 {[%emt 0:02:58]} 11. Qb2 {[%emt 0:00:13]} O-O {[%emt 0:05:17]} 12. O-O {[%emt 0:00:09]} Bb7 {[%emt 0:06:23]} 13. Ne5 {[%emt 0:06:02]} Qd6 {[%emt 0:03:38]} 14. Rfc1 {[%emt 0:01:45]} Rc8 {[%emt 0:02:48]} 15. Nb3 {[%emt 0:08:39]} Nbd7 {[%emt 0:08:29]} 16. Nxd7 {[%emt 0:22:31]} Nxd7 {[%emt 0:01:45]} 17. Nc5 {[%emt 0:00:19]} Rab8 {[%emt 0:08:01]} 18. Nxd7 {[%emt 0:08:41]} Qxd7 {[%emt 0:00:39]} 19. Rc5 {[%emt 0:00:05]} Ba6 {[%emt 0:01:40]} 20. e3 {[%emt 0:02:24]} Qd8 {[%emt 0:01:51]} 21. Qc2 {[%emt 0:12:12]} Qb6 {[%emt 0:02:28]} 22. Rc1 {[%emt 0:06:50]} b4 {[%emt 0:03:26]} 23. axb4 {[%emt 0:00:10]} axb4 {[%emt 0:01:37]} 24. Qb3 {[%emt 0:00:10]} Be2 {[%emt 0:07:18]} 25. h3 {[%emt 0:08:53]} Qa6 {[%emt 0:04:27]} 26. Bxc6 {[%emt 0:04:01]} Bd3 {[%emt 0:10:58]} 27. Bd7 {[%emt 0:11:03]} Rd8 {[%emt 0:01:16]} 28. Ba4 {[%emt 0:01:34]} Be4 {[%emt 0:03:53]} 29. Bc6 {[%emt 0:00:34]} Qd3 {[%emt 0:04:07]} 30. Qb2 {[%emt 0:02:13]} Bf5 {[%emt 0:03:27]} 31. Bg2 {[%emt 0:00:54]} h6 {[%emt 0:08:10]} 32. R5c4 {[%emt 0:01:17]} b3 {[%emt 0:05:39]} 33. Bf1 {[%emt 0:00:14]} Qe4 {[%emt 0:00:16]} 34. Bg2 {[%emt 0:00:04]} Qd3 {[%emt 0:00:15]} 35. Bf1 {[%emt 0:09:12]} 1/2-1/2

[Event "81st Tata Steel Challengers 2019"]
[Site "Wijk aan Zee"]
[Date "2019.01.20"]
[Round "8"]
[White "Esipenko, Andrey"]
[Black "Praggnanandhaa R"]
[Result "1-0"]
[ECO "B69"]
[WhiteElo "2584"]
[BlackElo "2539"]
[Annotator "ChessBase"]
[PlyCount "87"]
[EventDate "2019.01.12"]
[EventType "tourn"]
[EventCountry "NED"]
[SourceTitle "playchess.com"]
[Source "ChessBase"]
[SourceQuality "1"]
[TimeControl "40/6000+30:20/3000+30:900+30"]

1. e4 {[%emt 0:00:00]} c5 {[%emt 0:00:00]} 2. Nf3 {[%emt 0:00:00]} Nc6 {[%emt 0:00:00]} 3. d4 {[%emt 0:00:00]} cxd4 {[%emt 0:00:00]} 4. Nxd4 {[%emt 0:00:00]} Nf6 {[%emt 0:00:00]} 5. Nc3 {[%emt 0:00:01]} d6 {[%emt 0:00:04]} 6. Bg5 {[%emt 0:01:48]} e6 {[%emt 0:00:05]} 7. Qd2 {[%emt 0:01:29]} a6 {[%emt 0:00:07]} 8. O-O-O {[%emt 0:02:45]} Be7 {[%emt 0:00:41]} 9. f4 {[%emt 0:04:11]} Bd7 {[%emt 0:00:43]} 10. Nf3 {[%emt 0:04:20]} b5 {[%emt 0:00:12]} 11. Bxf6 {[%emt 0:09:42]} gxf6 {[%emt 0:00:08]} 12. Kb1 {[%emt 0:03:18]} Qb6 {[%emt 0:00:57]} 13. Ne2 {[%emt 0:06:08]} O-O-O {[%emt 0:02:50]} 14. Ned4 {[%emt 0:01:00]} Kb8 {[%emt 0:06:02]} 15. Be2 {[%emt 0:06:56]} Rc8 {[%emt 0:03:55]} 16. Rhf1 {[%emt 0:01:32]} Na5 {[%emt 0:05:55]} 17. g4 {[%emt 0:08:04]} Rhd8 {[%emt 0:19:09]} 18. Bd3 {[%emt 0:07:51]} Nc4 {[%emt 0:04:12]} 19. Bxc4 {[%emt 0:02:09]} Rxc4 {[%emt 0:00:36]} 20. g5 {[%emt 0:07:31]} Bc8 {[%emt 0:06:46]} 21. h4 {[%emt 0:11:11]} Bb7 {[%emt 0:03:08]} 22. Rfe1 {[%emt 0:00:10]} Rdc8 {[%emt 0:11:39]} 23. Qd3 {[%emt 0:04:15]} Qc7 {[%emt 0:07:38]} 24. Rc1 {[%emt 0:03:49]} Qb6 {[%emt 0:02:29]} 25. Rcd1 {[%emt 0:00:47]} Qc7 {[%emt 0:03:01]} 26. Rc1 {[%emt 0:01:30]} Qa5 {[%emt 0:00:44]} 27. Nb3 {[%emt 0:02:33]} Qb6 {[%emt 0:00:35]} 28. f5 {[%emt 0:03:52]} e5 {[%emt 0:03:47]} 29. Nbd2 {[%emt 0:00:21]} R4c5 {[%emt 0:02:19]} 30. Nf1 {[%emt 0:04:35]} d5 {[%emt 0:02:56]} 31. exd5 {[%emt 0:00:08]} Bxd5 {[%emt 0:02:50]} 32. N1d2 {[%emt 0:00:21]} Qc6 {[%emt 0:06:10]} 33. gxf6 {[%emt 0:02:42]} Bxf6 {[%emt 0:00:36]} 34. Ng5 {[%emt 0:00:15]} b4 {[%emt 0:03:25]} 35. Nge4 {[%emt 0:04:06]} Ra5 {[%emt 0:07:39]} 36. c4 {[%emt 0:02:07]} bxc3 {[%emt 0:01:27]} 37. Rxc3 {[%emt 0:02:56]} Bxa2+ {[%emt 0:02:57]} 38. Kc1 {[%emt 0:00:26]} Qb6 {[%emt 0:02:43]} 39. Nxf6 {[%emt 0:00:23]} Rxc3+ {[%emt 0:00:29]} 40. Qxc3 {[%emt 0:00:00]} Ka7 {[%emt 0:00:00]} 41. Nd7 {[%emt 0:02:58]} Qd8 {[%emt 0:01:48]} 42. Nxe5 {[%emt 0:02:02]} Bd5 {[%emt 0:00:40]} 43. Nb3 {[%emt 0:00:07]} Ra4 {[%emt 0:00:48]} 44. Rd1 {[%emt 0:00:23]} 1-0

[Event "81st Tata Steel Challengers 2019"]
[Site "Wijk aan Zee"]
[Date "2019.01.20"]
[Round "8"]
[White "Keymer, Vincent"]
[Black "Saduakassova, Dinara"]
[Result "1-0"]
[ECO "A18"]
[WhiteElo "2500"]
[BlackElo "2472"]
[Annotator "ChessBase"]
[PlyCount "75"]
[EventDate "2019.01.12"]
[EventType "tourn"]
[EventCountry "NED"]
[SourceTitle "playchess.com"]
[Source "ChessBase"]
[SourceQuality "1"]
[TimeControl "40/6000+30:20/3000+30:900+30"]

1. c4 {[%emt 0:00:00]} Nf6 {[%emt 0:00:00]} 2. Nc3 {[%emt 0:00:00]} e6 {[%emt 0:00:00]} 3. e4 {[%emt 0:00:00]} d5 {[%emt 0:00:00]} 4. cxd5 {[%emt 0:00:00]} exd5 {[%emt 0:00:00]} 5. e5 {[%emt 0:00:05]} Ne4 {[%emt 0:00:00]} 6. Nf3 {[%emt 0:00:04]} Be7 {[%emt 0:00:00]} 7. d4 {[%emt 0:00:06]} c5 {[%emt 0:00:17]} 8. dxc5 {[%emt 0:00:09]} Nxc3 {[%emt 0:00:08]} 9. bxc3 {[%emt 0:00:04]} O-O {[%emt 0:00:13]} 10. Bd3 {[%emt 0:01:52]} Nd7 {[%emt 0:08:53]} 11. O-O {[%emt 0:00:11]} Nxc5 {[%emt 0:00:13]} 12. Nd4 {[%emt 0:00:05]} Qc7 {[%emt 0:06:43]} 13. Bf4 Be6 {[%emt 0:11:21]} 14. Bc2 {[%emt 0:20:34]} Rac8 {[%emt 0:04:05]} 15. Rc1 {[%emt 0:09:12]} Rfd8 {[%emt 0:08:35]} 16. f3 {[%emt 0:18:15]} Nd7 {[%emt 0:09:29]} 17. Kh1 Ba3 {[%emt 0:09:39]} 18. Rb1 {[%emt 0:11:00]} Be7 {[%emt 0:03:23]} 19. Rc1 {[%emt 0:03:29]} Kh8 {[%emt 0:03:55]} 20. Bg3 {[%emt 0:05:39]} Qxc3 {[%emt 0:01:47]} 21. f4 {[%emt 0:01:21]} g6 {[%emt 0:16:54]} 22. f5 {[%emt 0:09:25]} gxf5 {[%emt 0:00:04]} 23. Rf3 {[%emt 0:00:17]} Qc7 {[%emt 0:05:18]} 24. Bf4 {[%emt 0:02:10]} Qa5 {[%emt 0:06:22]} 25. Rh3 {[%emt 0:02:26]} Nf8 {[%emt 0:02:12]} 26. Qh5 {[%emt 0:02:50]} Rxc2 {[%emt 0:05:08]} 27. Nxc2 {[%emt 0:00:14]} Rc8 {[%emt 0:00:17]} 28. Qd1 {[%emt 0:07:30]} Qxa2 {[%emt 0:01:46]} 29. Nd4 {[%emt 0:00:12]} Rc4 {[%emt 0:01:51]} 30. Rhc3 {[%emt 0:05:17]} b5 {[%emt 0:01:54]} 31. Bh6 {[%emt 0:01:56]} Qa6 {[%emt 0:01:06]} 32. Rxc4 dxc4 {[%emt 0:01:25]} 33. Qf3 {[%emt 0:05:25]} Qb6 {[%emt 0:01:09]} 34. Nc6 {[%emt 0:02:45]} Bc5 {[%emt 0:01:40]} 35. Qg3 {[%emt 0:00:29]} Ng6 {[%emt 0:00:02]} 36. Qg5 {[%emt 0:00:49]} Bf8 {[%emt 0:00:05]} 37. Bxf8 {[%emt 0:00:15]} Kg8 {[%emt 0:00:10]} 38. Bh6 {[%emt 0:00:10]} 1-0

[Event "81st Tata Steel Challengers 2019"]
[Site "Wijk aan Zee"]
[Date "2019.01.20"]
[Round "8"]
[White "Paehtz, Elisabeth"]
[Black "Van Foreest, Lucas"]
[Result "0-1"]
[ECO "E06"]
[WhiteElo "2477"]
[BlackElo "2502"]
[Annotator "ChessBase"]
[PlyCount "150"]
[EventDate "2019.01.12"]
[EventType "tourn"]
[EventCountry "NED"]
[SourceTitle "playchess.com"]
[Source "ChessBase"]
[SourceQuality "1"]
[TimeControl "40/6000+30:20/3000+30:900+30"]

1. d4 {[%emt 0:00:00]} Nf6 {[%emt 0:00:00]} 2. c4 {[%emt 0:00:00]} e6 {[%emt 0:00:00]} 3. g3 {[%emt 0:00:00]} d5 {[%emt 0:00:02]} 4. Bg2 {[%emt 0:00:00]} Be7 {[%emt 0:00:07]} 5. Nf3 {[%emt 0:00:00]} O-O {[%emt 0:00:05]} 6. O-O {[%emt 0:00:00]} dxc4 {[%emt 0:00:05]} 7. Qc2 {[%emt 0:00:00]} a6 {[%emt 0:00:20]} 8. a4 {[%emt 0:00:00]} Bd7 {[%emt 0:00:05]} 9. Qxc4 {[%emt 0:00:05]} Bc6 {[%emt 0:00:20]} 10. Bg5 {[%emt 0:00:05]} Bd5 {[%emt 0:00:06]} 11. Qc2 {[%emt 0:00:03]} Be4 {[%emt 0:01:22]} 12. Qc1 {[%emt 0:00:03]} h6 {[%emt 0:05:03]} 13. Bxf6 {[%emt 0:00:06]} Bxf6 {[%emt 0:00:05]} 14. Nc3 {[%emt 0:00:14]} Bxf3 {[%emt 0:04:04]} 15. Bxf3 {[%emt 0:00:54]} c6 {[%emt 0:06:21]} 16. Rd1 {[%emt 0:02:33]} a5 {[%emt 0:00:55]} 17. e3 {[%emt 0:01:02]} Na6 {[%emt 0:00:10]} 18. h4 {[%emt 0:00:09]} Nb4 {[%emt 0:03:32]} 19. h5 {[%emt 0:00:06]} Qe7 {[%emt 0:10:58]} 20. Qb1 {[%emt 0:16:06]} Rfd8 {[%emt 0:12:13]} 21. Qe4 {[%emt 0:04:18]} Rd7 {[%emt 0:07:46]} 22. Qg4 {[%emt 0:07:00]} Rad8 {[%emt 0:14:04]} 23. Kg2 {[%emt 0:05:22]} e5 {[%emt 0:07:33]} 24. dxe5 {[%emt 0:00:25]} Bxe5 {[%emt 0:00:06]} 25. Rxd7 {[%emt 0:05:56]} Rxd7 {[%emt 0:02:59]} 26. Rd1 {[%emt 0:01:01]} Rxd1 {[%emt 0:02:55]} 27. Nxd1 {[%emt 0:06:04]} Qd8 {[%emt 0:06:38]} 28. Qf5 {[%emt 0:03:22]} Bf6 {[%emt 0:00:31]} 29. Nc3 {[%emt 0:08:19]} Nd3 {[%emt 0:03:48]} 30. Nd1 {[%emt 0:21:14]} Ne1+ {[%emt 0:02:33]} 31. Kf1 {[%emt 0:00:16]} Nxf3 {[%emt 0:00:04]} 32. Qxf3 {[%emt 0:00:04]} Qd3+ {[%emt 0:00:11]} 33. Kg2 {[%emt 0:04:18]} b5 {[%emt 0:09:52]} 34. Qxc6 {[%emt 0:13:46]} Qxd1 {[%emt 0:00:18]} 35. Qe8+ {[%emt 0:00:35]} Kh7 {[%emt 0:00:05]} 36. Qe4+ {[%emt 0:00:38]} g6 {[%emt 0:03:58]} 37. hxg6+ {[%emt 0:00:03]} fxg6 {[%emt 0:01:18]} 38. Qb7+ {[%emt 0:03:41]} Bg7 {[%emt 0:00:06]} 39. axb5 {[%emt 0:02:35]} Qb3 {[%emt 0:00:24]} 40. b6 {[%emt 0:00:00]} Qxb2 {[%emt 0:00:00]} 41. Qa7 {[%emt 0:04:52]} a4 {[%emt 0:00:57]} 42. b7 {[%emt 0:00:05]} a3 {[%emt 0:00:07]} 43. b8=Q {[%emt 0:01:16]} Qxb8 {[%emt 0:00:07]} 44. Qxb8 {[%emt 0:00:15]} a2 {[%emt 0:00:02]} 45. g4 {[%emt 0:04:18]} a1=Q {[%emt 0:00:45]} 46. Qb7 {[%emt 0:00:27]} Qd1 {[%emt 0:06:26]} 47. Qe4 {[%emt 0:00:36]} Qd7 {[%emt 0:02:43]} 48. Kg1 {[%emt 0:00:56]} h5 {[%emt 0:03:16]} 49. gxh5 {[%emt 0:00:13]} Qd1+ {[%emt 0:00:10]} 50. Kg2 {[%emt 0:00:11]} Qxh5 {[%emt 0:00:08]} 51. Kg1 {[%emt 0:06:45]} Be5 {[%emt 0:02:07]} 52. Kg2 {[%emt 0:03:02]} Kh6 {[%emt 0:00:53]} 53. Kf1 {[%emt 0:01:33]} Bf6 {[%emt 0:01:00]} 54. Qf4+ {[%emt 0:00:27]} Qg5 {[%emt 0:00:09]} 55. Qh2+ {[%emt 0:00:29]} Qh4 {[%emt 0:00:13]} 56. Qd6 {[%emt 0:01:40]} Qc4+ {[%emt 0:01:20]} 57. Kg1 {[%emt 0:00:28]} Qg4+ {[%emt 0:03:10]} 58. Kf1 {[%emt 0:00:09]} Qf3 {[%emt 0:00:52]} 59. Qh2+ {[%emt 0:02:56]} Kg5 {[%emt 0:00:28]} 60. Qh7 {[%emt 0:00:00]} Qd1+ {[%emt 0:00:00]} 61. Kg2 {[%emt 0:01:00]} Qg4+ {[%emt 0:03:35]} 62. Kf1 {[%emt 0:00:06]} Qc4+ {[%emt 0:00:04]} 63. Kg1 {[%emt 0:00:53]} Qe4 {[%emt 0:00:32]} 64. Kf1 {[%emt 0:02:06]} Qc4+ {[%emt 0:13:23]} 65. Kg1 {[%emt 0:00:19]} Qg4+ {[%emt 0:00:03]} 66. Kf1 {[%emt 0:00:10]} Qe4 {[%emt 0:00:03]} 67. Kg1 {[%emt 0:01:46]} Be7 {[%emt 0:03:26]} 68. Qf7 {[%emt 0:08:58]} Kh4 {[%emt 0:01:50]} 69. Qh7+ {[%emt 0:03:56]} Kg4 {[%emt 0:01:17]} 70. Kf1 {[%emt 0:03:19]} Bh4 {[%emt 0:02:47]} 71. Qd7+ {[%emt 0:00:13]} Qf5 {[%emt 0:00:13]} 72. Qd4+ {[%emt 0:02:32]} Kh3 {[%emt 0:01:27]} 73. e4 {[%emt 0:00:11]} Qb5+ {[%emt 0:01:52]} 74. Ke1 {[%emt 0:00:05]} Kg2 {[%emt 0:00:08]} 75. e5 {[%emt 0:00:19]} Qf1+ {[%emt 0:00:10]} 0-1

[Event "81st Tata Steel Challengers 2019"]
[Site "Wijk aan Zee"]
[Date "2019.01.23"]
[Round "10"]
[White "Esipenko, Andrey"]
[Black "Van Foreest, Lucas"]
[Result "1-0"]
[ECO "D37"]
[WhiteElo "2584"]
[BlackElo "2502"]
[Annotator "ChessBase"]
[PlyCount "81"]
[EventDate "2019.01.12"]
[EventType "tourn"]
[EventCountry "NED"]
[SourceTitle "playchess.com"]
[Source "ChessBase"]
[SourceQuality "1"]
[TimeControl "40/6000+30:20/3000+30:900+30"]

1. d4 {[%emt 0:00:00]} Nf6 {[%emt 0:00:00]} 2. Nf3 {[%emt 0:00:00]} d5 {[%emt 0:00:00]} 3. c4 {[%emt 0:00:00]} e6 {[%emt 0:00:00]} 4. Nc3 {[%emt 0:00:00]} dxc4 {[%emt 0:00:15]} 5. e4 {[%emt 0:00:03]} Bb4 {[%emt 0:00:12]} 6. Bxc4 {[%emt 0:00:09]} Nxe4 {[%emt 0:00:06]} 7. O-O {[%emt 0:00:07]} Nxc3 {[%emt 0:00:03]} 8. bxc3 {[%emt 0:00:06]} Bd6 {[%emt 0:00:03]} 9. Ng5 {[%emt 0:00:40]} h6 {[%emt 0:00:58]} 10. Ne4 {[%emt 0:00:23]} O-O {[%emt 0:00:25]} 11. Qf3 {[%emt 0:00:14]} Be7 {[%emt 0:04:18]} 12. Re1 {[%emt 0:00:13]} Nd7 {[%emt 0:00:08]} 13. Rb1 {[%emt 0:00:28]} c5 {[%emt 0:03:10]} 14. Bd3 {[%emt 0:45:51]} cxd4 {[%emt 0:04:41]} 15. cxd4 {[%emt 0:00:14]} Re8 {[%emt 0:00:57]} 16. Bf4 {[%emt 0:04:10]} Nf8 {[%emt 0:17:54]} 17. Ng3 {[%emt 0:07:41]} Bd6 {[%emt 0:13:12]} 18. Be5 {[%emt 0:06:49]} Bxe5 {[%emt 0:06:17]} 19. dxe5 {[%emt 0:00:19]} Bd7 {[%emt 0:06:13]} 20. Rxb7 {[%emt 0:11:01]} Qa5 {[%emt 0:00:24]} 21. Re3 {[%emt 0:05:05]} Rab8 {[%emt 0:07:50]} 22. Rxb8 {[%emt 0:02:55]} Rxb8 {[%emt 0:00:11]} 23. h4 {[%emt 0:00:49]} Qxa2 {[%emt 0:03:29]} 24. Nh5 {[%emt 0:01:56]} Rb4 {[%emt 0:09:35]} 25. Qg3 {[%emt 0:03:35]} g6 {[%emt 0:06:08]} 26. Nf6+ {[%emt 0:00:21]} Kg7 {[%emt 0:01:04]} 27. Be4 {[%emt 0:01:56]} Rb5 {[%emt 0:07:49]} 28. Kh2 {[%emt 0:06:56]} Qa1 {[%emt 0:05:52]} 29. Rc3 {[%emt 0:01:05]} Qa5 {[%emt 0:00:56]} 30. f4 {[%emt 0:03:06]} Rc5 {[%emt 0:00:25]} 31. Ra3 {[%emt 0:00:09]} Qb6 {[%emt 0:00:03]} 32. Rb3 {[%emt 0:03:18]} Bb5 {[%emt 0:02:10]} 33. Rb1 {[%emt 0:00:23]} a6 {[%emt 0:02:35]} 34. h5 {[%emt 0:00:19]} Qd8 {[%emt 0:00:23]} 35. hxg6 {[%emt 0:01:15]} fxg6 {[%emt 0:01:14]} 36. Qa3 {[%emt 0:03:48]} Rc7 {[%emt 0:02:14]} 37. Qa5 {[%emt 0:00:04]} Rd7 {[%emt 0:01:10]} 38. Qe1 {[%emt 0:00:33]} Rd4 {[%emt 0:02:19]} 39. Qh4 {[%emt 0:01:37]} Rd1 {[%emt 0:01:59]} 40. Rxd1 {[%emt 0:00:00]} Qxd1 {[%emt 0:00:00]} 41. Ng4 {[%emt 0:01:19]} 1-0

[Event "81st Tata Steel Challengers 2019"]
[Site "Wijk aan Zee"]
[Date "2019.01.23"]
[Round "10"]
[White "Paehtz, Elisabeth"]
[Black "Saduakassova, Dinara"]
[Result "1/2-1/2"]
[ECO "B47"]
[WhiteElo "2477"]
[BlackElo "2472"]
[Annotator "ChessBase"]
[PlyCount "37"]
[EventDate "2019.01.12"]
[EventType "tourn"]
[EventCountry "NED"]
[SourceTitle "playchess.com"]
[Source "ChessBase"]
[SourceQuality "1"]
[TimeControl "40/6000+30:20/3000+30:900+30"]

1. e4 {[%emt 0:00:00]} c5 {[%emt 0:00:00]} 2. Nf3 {[%emt 0:00:00]} e6 {[%emt 0:00:00]} 3. d4 {[%emt 0:00:00]} cxd4 {[%emt 0:00:00]} 4. Nxd4 {[%emt 0:00:00]} Nc6 {[%emt 0:00:00]} 5. Nc3 {[%emt 0:00:00]} Qc7 {[%emt 0:00:00]} 6. Nb3 {[%emt 0:00:00]} Nf6 {[%emt 0:03:09]} 7. Bd3 {[%emt 0:00:05]} Be7 {[%emt 0:03:27]} 8. O-O {[%emt 0:01:14]} O-O {[%emt 0:01:45]} 9. f4 {[%emt 0:01:01]} d6 {[%emt 0:00:35]} 10. Qe2 {[%emt 0:00:42]} a6 {[%emt 0:03:03]} 11. Kh1 {[%emt 0:01:40]} b5 {[%emt 0:03:36]} 12. a3 {[%emt 0:00:41]} Bb7 {[%emt 0:00:58]} 13. Bd2 {[%emt 0:00:15]} Rac8 {[%emt 0:14:38]} 14. Rae1 {[%emt 0:10:06]} b4 {[%emt 0:00:57]} 15. axb4 {[%emt 0:04:52]} Nxb4 {[%emt 0:00:04]} 16. Nb5 {[%emt 0:07:46]} axb5 {[%emt 0:00:11]} 17. Bxb4 {[%emt 0:00:04]} e5 {[%emt 0:08:08]} 18. Ba5 {[%emt 0:14:32]} Qb8 {[%emt 0:02:21]} 19. fxe5 {[%emt 0:05:08]} 1/2-1/2

[Event "81st Tata Steel Challengers 2019"]
[Site "Wijk aan Zee"]
[Date "2019.01.25"]
[Round "11"]
[White "Van Foreest, Lucas"]
[Black "Praggnanandhaa R"]
[Result "1/2-1/2"]
[ECO "B41"]
[WhiteElo "2502"]
[BlackElo "2539"]
[Annotator "RC"]
[PlyCount "78"]
[EventDate "2019.01.12"]
[EventType "tourn"]
[EventCountry "NED"]
[SourceTitle "playchess.com"]
[Source "ChessBase"]
[SourceQuality "1"]
[TimeControl "40/6000+30:20/3000+30:900+30"]

1. e4 {[%emt 0:00:00]} c5 {[%emt 0:00:00]} 2. Nf3 {[%emt 0:00:00]} e6 {[%emt 0:00:00]} 3. d4 {[%emt 0:00:14]} cxd4 {[%emt 0:00:06]} 4. Nxd4 {[%emt 0:00:04]} a6 {[%emt 0:00:07]} 5. c4 {[%emt 0:00:06]} Nf6 {[%emt 0:00:06]} 6. Nc3 {[%emt 0:00:51]} Qc7 {[%emt 0:00:14]} 7. Be2 {[%emt 0:00:38]} Bb4 {[%emt 0:00:43]} 8. Qd3 {[%emt 0:01:18]} O-O {[%emt 0:00:42]} 9. O-O {[%emt 0:02:36]} Bxc3 {[%emt 0:07:14]} 10. bxc3 {[%emt 0:01:38]} d6 {[%emt 0:00:16]} 11. Nb3 {[%emt 0:10:23]} Nbd7 {[%emt 0:08:55]} 12. Bf4 {[%emt 0:06:09]} e5 {[%emt 0:05:13]} 13. Bg5 {[%emt 0:03:07]} h6 {[%emt 0:04:36]} 14. Bh4 {[%emt 0:01:38]} g5 {[%emt 0:03:41]} 15. Bg3 {[%emt 0:00:12]} Nc5 {[%emt 0:01:10]} 16. Nxc5 {[%emt 0:00:55]} Qxc5 {[%emt 0:00:27]} 17. Rfd1 {[%emt 0:10:44]} Rd8 {[%emt 0:04:47]} 18. Rab1 {[%emt 0:01:35]} b5 {[%emt 0:08:56]} 19. cxb5 {[%emt 0:19:21]} axb5 {[%emt 0:12:22]} 20. Qxb5 {[%emt 0:13:57]} Nxe4 {[%emt 0:05:50]} 21. Qxc5 {[%emt 0:04:53]} Nxc5 {[%emt 0:01:39]} 22. Bxe5 {[%emt 0:02:21]} Bf5 {[%emt 0:01:52]} 23. Bf6 {[%emt 0:01:46]} Bxb1 {[%emt 0:05:01]} 24. Bxd8 {[%emt 0:01:44]} Bc2 {[%emt 0:10:58]} 25. Rxd6 {[%emt 0:06:00]} Ne4 {[%emt 0:00:17]} 26. Rd4 {[%emt 0:00:15]} Nxc3 {[%emt 0:01:48]} 27. Bf3 {[%emt 0:01:53]} Be4 {[%emt 0:06:17]} 28. Rd2 {[%emt 0:08:52]} Bxf3 {[%emt 0:00:33]} 29. gxf3 {[%emt 0:00:03]} Rxa2 {[%emt 0:00:33]} 30. Rxa2 {[%emt 0:00:07]} Nxa2 {[%emt 0:00:04]} 31. Ba5 {[%emt 0:06:36]} Nc1 {[%emt 0:00:08]} 32. Bd2 {[%emt 0:00:22]} Ne2+ {[%emt 0:01:26]} 33. Kg2 {[%emt 0:00:36]} Nd4 {[%emt 0:00:42]} 34. h4 {[%emt 0:00:47]} f6 {[%emt 0:01:08]} 35. Bc3 {[%emt 0:00:24]} Nf5 {[%emt 0:00:07]} 36. Bxf6 {[%emt 0:00:06]} Nxh4+ {[%emt 0:00:04]} 37. Kg3 {[%emt 0:00:05]} Kf7 {[%emt 0:00:10]} 38. Bxg5 {[%emt 0:00:21]} hxg5 {[%emt 0:00:07]} 39. Kg4 {[%emt 0:00:13]} Nxf3 {[%emt 0:00:34]} 1/2-1/2